[Event "Early-Titled-Tuesday-Blitz-October-17-2023"]
[Site "Chess.com"]
[Date "2023.10.17"]
[Round "1"]
[White "LoydBlankenship"]
[Black "HanSchut"]
[Result "1-0"]
[WhiteElo "2625"]
[BlackElo "2321"]
[TimeControl "180+1"]
[EndTime "8:06:40 PDT"]
[Termination "LoydBlankenship won by resignation"]

1. e4 {[%clk 0:02:59.6]} 1... c5 {[%clk 0:02:59.6]} 2. Nf3 {[%clk 0:02:59.6]}
2... d6 {[%clk 0:03:00.1]} 3. d4 {[%clk 0:03:00.2]} 3... cxd4 {[%clk 0:03:01]}
4. Nxd4 {[%clk 0:03:01.1]} 4... Nf6 {[%clk 0:03:01.6]} 5. Nc3 {[%clk 0:03:01.8]}
5... a6 {[%clk 0:03:01.8]} 6. Bg5 {[%clk 0:03:01.7]} 6... e6 {[%clk 0:03:02.3]}
7. f4 {[%clk 0:03:02]} 7... Be7 {[%clk 0:03:02.9]} 8. Qf3 {[%clk 0:03:02.4]}
8... h6 {[%clk 0:03:03.1]} 9. Bh4 {[%clk 0:03:02.2]} 9... g5 {[%clk 0:03:02.9]}
10. fxg5 {[%clk 0:03:02.1]} 10... Nfd7 {[%clk 0:02:58.7]} 11. O-O-O {[%clk
0:02:58.2]} 11... Ne5 {[%clk 0:02:58.2]} 12. Qe2 {[%clk 0:02:55.5]} 12... hxg5
{[%clk 0:02:57.8]} 13. Bg3 {[%clk 0:02:55.7]} 13... Qc7 {[%clk 0:02:52.2]} 14.
Kb1 {[%clk 0:02:53.1]} 14... Bd7 {[%clk 0:02:51.7]} 15. Qf2 {[%clk 0:02:52.7]}
15... Nbc6 {[%clk 0:02:50.1]} 16. Nxc6 {[%clk 0:02:50]} 16... Bxc6 {[%clk
0:02:46.7]} 17. Bxe5 {[%clk 0:02:50.4]} 17... dxe5 {[%clk 0:02:46.9]} 18. Be2
{[%clk 0:02:50.5]} 18... Rh7 {[%clk 0:02:39.1]} 19. Rhf1 {[%clk 0:02:48.5]}
19... b5 {[%clk 0:02:28.2]} 20. Bd3 {[%clk 0:02:46.6]} 20... O-O-O {[%clk
0:02:26.5]} 21. h3 {[%clk 0:02:44.5]} 21... Kb8 {[%clk 0:02:16.5]} 22. Ne2
{[%clk 0:02:42.3]} 22... Qb7 {[%clk 0:02:00.3]} 23. Qe3 {[%clk 0:02:41.1]} 23...
Rd7 {[%clk 0:01:32.9]} 24. Ng1 {[%clk 0:02:34]} 24... f6 {[%clk 0:01:31.1]} 25.
Rde1 {[%clk 0:02:30.2]} 25... Rh8 {[%clk 0:01:30.9]} 26. Qe2 {[%clk 0:02:25.9]}
26... Rhd8 {[%clk 0:01:28.8]} 27. Qg4 {[%clk 0:02:26]} 27... Rd6 {[%clk
0:01:27.4]} 28. Ne2 {[%clk 0:02:26]} 28... Bd7 {[%clk 0:01:22.3]} 29. Ng3 {[%clk
0:02:26]} 29... Bc8 {[%clk 0:01:22.4]} 30. Nh5 {[%clk 0:02:25.5]} 30... Rf8
{[%clk 0:01:22.6]} 31. Re2 {[%clk 0:02:23.2]} 31... Rd4 {[%clk 0:01:22.6]} 32.
Qg3 {[%clk 0:02:21.9]} 32... Bd7 {[%clk 0:01:15.1]} 33. Ref2 {[%clk 0:02:21.6]}
33... f5 {[%clk 0:01:05.5]} 34. Qxe5+ {[%clk 0:02:18.2]} 34... Rd6 {[%clk
0:01:02.5]} 35. exf5 {[%clk 0:02:15]} 35... Qc7 {[%clk 0:00:56.9]} 36. f6 {[%clk
0:02:12.6]} 36... Bd8 {[%clk 0:00:52.5]} 37. Qxg5 {[%clk 0:01:47.2]} 37... Rd5
{[%clk 0:00:44.1]} 38. Qg7 {[%clk 0:01:46.2]} 38... Qd6 {[%clk 0:00:39.3]} 39.
Nf4 {[%clk 0:01:45.5]} 39... Rf5 {[%clk 0:00:37.1]} 40. Bxf5 {[%clk 0:01:43.9]}
40... exf5 {[%clk 0:00:36.4]} 41. Nh5 {[%clk 0:01:36.8]} 41... Be6 {[%clk
0:00:31.7]} 42. Qg3 {[%clk 0:01:27.9]} 42... Bc7 {[%clk 0:00:22.7]} 43. Qxd6
{[%clk 0:01:27.4]} 43... Bxd6 {[%clk 0:00:23.6]} 44. Rxf5 {[%clk 0:01:25.7]}
44... Bxf5 {[%clk 0:00:23.4]} 45. Rxf5 {[%clk 0:01:26.6]} 45... Kc7 {[%clk
0:00:23.2]} 46. g4 {[%clk 0:01:26.6]} 46... Kd7 {[%clk 0:00:23.4]} 47. a3 {[%clk
0:01:26.4]} 47... Ke6 {[%clk 0:00:23.9]} 48. Ka2 {[%clk 0:01:25.5]} 48... Be5
{[%clk 0:00:21.8]} 49. Kb3 {[%clk 0:01:25.4]} 49... Rc8 {[%clk 0:00:20.4]} 50.
c3 {[%clk 0:01:25.2]} 50... a5 {[%clk 0:00:19.8]} 51. f7 {[%clk 0:01:25.2]}
51... Rf8 {[%clk 0:00:18.7]} 52. a4 {[%clk 0:01:24.8]} 52... b4 {[%clk
0:00:17.1]} 53. cxb4 {[%clk 0:01:25.2]} 53... axb4 {[%clk 0:00:18]} 54. a5
{[%clk 0:01:25.9]} 1-0

[Event "Early-Titled-Tuesday-Blitz-October-17-2023"]
[Site "Chess.com"]
[Date "2023.10.17"]
[Round "1"]
[White "averageFM"]
[Black "Air-Conditioner07"]
[Result "1-0"]
[WhiteElo "2573"]
[BlackElo "2206"]
[TimeControl "180+1"]
[EndTime "8:06:40 PDT"]
[Termination "averageFM won by resignation"]

1. e4 {[%clk 0:02:58.5]} 1... e5 {[%clk 0:02:56.9]} 2. Nf3 {[%clk 0:02:57.5]}
2... Nc6 {[%clk 0:02:55.5]} 3. Nc3 {[%clk 0:02:56.6]} 3... Bc5 {[%clk 0:02:52]}
4. Nxe5 {[%clk 0:02:55.6]} 4... Nxe5 {[%clk 0:02:32.8]} 5. d4 {[%clk 0:02:54.7]}
5... Bd6 {[%clk 0:02:27.3]} 6. dxe5 {[%clk 0:02:54.5]} 6... Bxe5 {[%clk
0:02:27.2]} 7. Nb5 {[%clk 0:02:50.3]} 7... a6 {[%clk 0:02:20.6]} 8. f4 {[%clk
0:02:49.8]} 8... Bf6 {[%clk 0:02:07.1]} 9. Nc3 {[%clk 0:02:43.8]} 9... d6 {[%clk
0:02:07.1]} 10. Bd3 {[%clk 0:02:34.3]} 10... Ne7 {[%clk 0:02:06.9]} 11. O-O
{[%clk 0:02:31.9]} 11... O-O {[%clk 0:02:01]} 12. Kh1 {[%clk 0:02:26.9]} 12...
b5 {[%clk 0:01:48.7]} 13. e5 {[%clk 0:02:04.4]} 13... dxe5 {[%clk 0:01:24.4]}
14. Ne4 {[%clk 0:02:03]} 14... Ng6 {[%clk 0:00:55.7]} 15. Nxf6+ {[%clk
0:01:51.8]} 15... Qxf6 {[%clk 0:00:49.2]} 16. fxe5 {[%clk 0:01:50.8]} 16... Qxe5
{[%clk 0:00:48.5]} 17. Bd2 {[%clk 0:01:21.1]} 17... Bb7 {[%clk 0:00:47.2]} 18.
Bc3 {[%clk 0:01:20.2]} 18... Qd5 {[%clk 0:00:45.5]} 19. Qg4 {[%clk 0:01:12.8]}
19... c5 {[%clk 0:00:34.4]} 20. Rf5 {[%clk 0:01:08.2]} 20... Qe6 {[%clk
0:00:31.5]} 21. Raf1 {[%clk 0:01:02.6]} 21... b4 {[%clk 0:00:20.4]} 22. Bc4
{[%clk 0:00:31.9]} 22... Qc6 {[%clk 0:00:18.6]} 23. Rxf7 {[%clk 0:00:23.9]}
23... Qxg2+ {[%clk 0:00:16.9]} 24. Qxg2 {[%clk 0:00:23.1]} 24... Bxg2+ {[%clk
0:00:13.7]} 25. Kxg2 {[%clk 0:00:23.3]} 1-0

[Event "Early-Titled-Tuesday-Blitz-October-17-2023"]
[Site "Chess.com"]
[Date "2023.10.17"]
[Round "1"]
[White "Wizard_97"]
[Black "dontcatchmeifyoucant"]
[Result "1-0"]
[WhiteElo "2578"]
[BlackElo "2200"]
[TimeControl "180+1"]
[EndTime "8:06:41 PDT"]
[Termination "Wizard_97 won by resignation"]

1. e4 {[%clk 0:02:56.3]} 1... c6 {[%clk 0:02:54.8]} 2. d4 {[%clk 0:02:56]} 2...
d5 {[%clk 0:02:55.5]} 3. Nd2 {[%clk 0:02:56.1]} 3... dxe4 {[%clk 0:02:54.3]} 4.
Nxe4 {[%clk 0:02:57]} 4... Nf6 {[%clk 0:02:55.2]} 5. Nxf6+ {[%clk 0:02:57.2]}
5... exf6 {[%clk 0:02:56.1]} 6. c3 {[%clk 0:02:57.2]} 6... Bd6 {[%clk 0:02:54]}
7. Bd3 {[%clk 0:02:57.5]} 7... Na6 {[%clk 0:02:53.9]} 8. Ne2 {[%clk 0:02:57.8]}
8... Nc7 {[%clk 0:02:53.2]} 9. O-O {[%clk 0:02:58.2]} 9... h5 {[%clk 0:02:50.3]}
10. Nf4 {[%clk 0:02:55.8]} 10... h4 {[%clk 0:02:42.1]} 11. Re1+ {[%clk
0:02:54.2]} 11... Kf8 {[%clk 0:02:42]} 12. Bc2 {[%clk 0:02:24.3]} 12... g5
{[%clk 0:02:19.9]} 13. Nd3 {[%clk 0:02:23.4]} 13... Nd5 {[%clk 0:02:17.1]} 14.
c4 {[%clk 0:02:21]} 14... Nb4 {[%clk 0:02:14.1]} 15. Nxb4 {[%clk 0:02:20.7]}
15... Bxb4 {[%clk 0:02:15]} 16. Bd2 {[%clk 0:02:20.9]} 16... Bd6 {[%clk
0:02:01.2]} 17. Bc3 {[%clk 0:02:19.5]} 17... g4 {[%clk 0:01:58.1]} 18. d5 {[%clk
0:02:18.3]} 18... g3 {[%clk 0:01:50.5]} 19. Qf3 {[%clk 0:01:45.8]} 19... gxf2+
{[%clk 0:01:14]} 20. Qxf2 {[%clk 0:01:42.3]} 20... Kg7 {[%clk 0:01:09.2]} 21.
Rf1 {[%clk 0:01:40]} 21... Rh6 {[%clk 0:01:09.5]} 22. Bd2 {[%clk 0:01:37.4]}
22... Rh8 {[%clk 0:01:04.5]} 23. Bc3 {[%clk 0:01:28.9]} 23... Rh6 {[%clk
0:01:03.6]} 24. Qd2 {[%clk 0:01:14]} 24... cxd5 {[%clk 0:00:48.9]} 25. Bxf6+
{[%clk 0:00:58]} 25... Rxf6 {[%clk 0:00:41.3]} 26. Qg5+ {[%clk 0:00:57]} 26...
Kf8 {[%clk 0:00:38.2]} 27. Rxf6 {[%clk 0:00:51.8]} 27... Be6 {[%clk 0:00:20.7]}
28. Raf1 {[%clk 0:00:40.3]} 28... Qe7 {[%clk 0:00:13.5]} 29. Qh6+ {[%clk
0:00:38.2]} 29... Ke8 {[%clk 0:00:13.3]} 30. Qh8+ {[%clk 0:00:38.1]} 30... Qf8
{[%clk 0:00:12.5]} 31. Rxe6+ {[%clk 0:00:37.5]} 1-0

[Event "Early-Titled-Tuesday-Blitz-October-17-2023"]
[Site "Chess.com"]
[Date "2023.10.17"]
[Round "1"]
[White "kreonx"]
[Black "bascheyaro"]
[Result "0-1"]
[WhiteElo "2488"]
[BlackElo "2834"]
[TimeControl "180+1"]
[EndTime "8:06:43 PDT"]
[Termination "bascheyaro won by resignation"]

1. e4 {[%clk 0:03:00.9]} 1... e6 {[%clk 0:03:00.2]} 2. d3 {[%clk 0:02:59.7]}
2... d5 {[%clk 0:03:01.1]} 3. Nd2 {[%clk 0:03:00]} 3... c5 {[%clk 0:03:01.6]} 4.
Ngf3 {[%clk 0:02:58.3]} 4... Nc6 {[%clk 0:03:01.6]} 5. g3 {[%clk 0:02:57.3]}
5... g6 {[%clk 0:03:02]} 6. Bg2 {[%clk 0:02:56]} 6... Bg7 {[%clk 0:03:02.5]} 7.
O-O {[%clk 0:02:55.7]} 7... Nge7 {[%clk 0:03:02.3]} 8. Re1 {[%clk 0:02:53.9]}
8... O-O {[%clk 0:03:02.4]} 9. c3 {[%clk 0:02:48.8]} 9... e5 {[%clk 0:03:02]}
10. Qc2 {[%clk 0:02:34.6]} 10... b6 {[%clk 0:02:53.5]} 11. a3 {[%clk 0:02:29.4]}
11... h6 {[%clk 0:02:48.6]} 12. b4 {[%clk 0:02:20.8]} 12... cxb4 {[%clk
0:02:47.4]} 13. axb4 {[%clk 0:02:12.5]} 13... d4 {[%clk 0:02:47.5]} 14. b5
{[%clk 0:02:11]} 14... dxc3 {[%clk 0:02:46.9]} 15. Qxc3 {[%clk 0:01:51.6]} 15...
Na5 {[%clk 0:02:45.7]} 16. Nxe5 {[%clk 0:01:39.9]} 16... Be6 {[%clk 0:02:41.5]}
17. f4 {[%clk 0:01:37.8]} 17... Rc8 {[%clk 0:02:38.4]} 18. Qa3 {[%clk 0:01:37]}
18... Qd4+ {[%clk 0:02:33.9]} 19. Kh1 {[%clk 0:01:35.4]} 19... Bxe5 {[%clk
0:02:26.2]} 20. fxe5 {[%clk 0:01:35]} 20... Rfd8 {[%clk 0:02:21.9]} 21. Bb2
{[%clk 0:01:25.9]} 21... Qxd3 {[%clk 0:02:21.9]} 22. Qxe7 {[%clk 0:01:08]} 22...
Qxd2 {[%clk 0:02:21.7]} 23. Ba3 {[%clk 0:01:04.7]} 23... Rc2 {[%clk 0:02:15.4]}
24. Rg1 {[%clk 0:01:05]} 24... Bh3 {[%clk 0:02:07.3]} 25. Qxd8+ {[%clk
0:01:04.3]} 25... Qxd8 {[%clk 0:02:06.9]} 26. Bxh3 {[%clk 0:01:04.8]} 26... Nc4
{[%clk 0:02:02.1]} 27. e6 {[%clk 0:00:54.7]} 27... fxe6 {[%clk 0:01:42]} 28.
Bxe6+ {[%clk 0:00:52.8]} 28... Kg7 {[%clk 0:01:42.2]} 29. Rgd1 {[%clk
0:00:24.3]} 29... Rd2 {[%clk 0:01:29]} 30. Rf1 {[%clk 0:00:18.4]} 30... Nxa3
{[%clk 0:01:17]} 31. Rf7+ {[%clk 0:00:17.5]} 31... Kh8 {[%clk 0:01:17]} 32. Rxa3
{[%clk 0:00:18.4]} 32... Rd1+ {[%clk 0:00:53.4]} 33. Kg2 {[%clk 0:00:18.4]}
33... Qd2+ {[%clk 0:00:53.7]} 34. Kh3 {[%clk 0:00:18.4]} 34... Qd6 {[%clk
0:00:52.4]} 35. Bd5 {[%clk 0:00:14]} 35... Qxa3 {[%clk 0:00:51.8]} 36. Rf8+
{[%clk 0:00:08.7]} 36... Qxf8 {[%clk 0:00:51.2]} 0-1

[Event "Early-Titled-Tuesday-Blitz-October-17-2023"]
[Site "Chess.com"]
[Date "2023.10.17"]
[Round "1"]
[White "Payyappat"]
[Black "baki83"]
[Result "0-1"]
[WhiteElo "2478"]
[BlackElo "2815"]
[TimeControl "180+1"]
[EndTime "8:06:43 PDT"]
[Termination "baki83 won by resignation"]

1. e4 {[%clk 0:03:00.3]} 1... c5 {[%clk 0:02:49.2]} 2. Nf3 {[%clk 0:02:59.8]}
2... d6 {[%clk 0:02:48.9]} 3. d4 {[%clk 0:03:00.2]} 3... cxd4 {[%clk 0:02:48.9]}
4. Nxd4 {[%clk 0:03:01.1]} 4... Nf6 {[%clk 0:02:49.3]} 5. Nc3 {[%clk 0:03:01.1]}
5... Nc6 {[%clk 0:02:49.5]} 6. Bg5 {[%clk 0:02:57.6]} 6... e6 {[%clk 0:02:48]}
7. Qd2 {[%clk 0:02:54.7]} 7... a6 {[%clk 0:02:45.9]} 8. O-O-O {[%clk 0:02:54.3]}
8... Bd7 {[%clk 0:02:46.4]} 9. f4 {[%clk 0:02:53.5]} 9... Be7 {[%clk 0:02:45]}
10. Be2 {[%clk 0:02:50.1]} 10... Qa5 {[%clk 0:02:40.3]} 11. Bf3 {[%clk
0:02:47.3]} 11... Rc8 {[%clk 0:02:38.6]} 12. Nb3 {[%clk 0:02:43.4]} 12... Qc7
{[%clk 0:02:37.8]} 13. Rhe1 {[%clk 0:02:37.7]} 13... b5 {[%clk 0:02:25.2]} 14.
e5 {[%clk 0:02:37.9]} 14... dxe5 {[%clk 0:02:24.6]} 15. fxe5 {[%clk 0:02:38.8]}
15... b4 {[%clk 0:02:14.1]} 16. exf6 {[%clk 0:02:09.3]} 16... bxc3 {[%clk
0:02:13]} 17. Qxd7+ {[%clk 0:01:59.6]} 17... Qxd7 {[%clk 0:02:11.1]} 18. Rxd7
{[%clk 0:02:00.5]} 18... gxf6 {[%clk 0:01:59.7]} 19. Rb7 {[%clk 0:01:27.7]}
19... fxg5 {[%clk 0:01:47]} 20. Bxc6+ {[%clk 0:01:18.8]} 20... Rxc6 {[%clk
0:01:46.4]} 21. Nd4 {[%clk 0:01:08.3]} 21... cxb2+ {[%clk 0:01:36.9]} 22. Kb1
{[%clk 0:01:06.8]} 22... Rc8 {[%clk 0:00:42.3]} 23. Nf5 {[%clk 0:00:35.4]} 23...
Bf8 {[%clk 0:00:35.4]} 24. Kxb2 {[%clk 0:00:20.5]} 24... Rc5 {[%clk 0:00:19]}
25. Nd4 {[%clk 0:00:15.8]} 25... Bg7 {[%clk 0:00:17.9]} 26. Rb8+ {[%clk
0:00:14.1]} 26... Kd7 {[%clk 0:00:17.5]} 27. Rxh8 {[%clk 0:00:10]} 27... Bxd4+
{[%clk 0:00:17.3]} 28. Kb3 {[%clk 0:00:09]} 28... Bxh8 {[%clk 0:00:17.6]} 0-1

[Event "Early-Titled-Tuesday-Blitz-October-17-2023"]
[Site "Chess.com"]
[Date "2023.10.17"]
[Round "1"]
[White "Goryachkina"]
[Black "Cambek64"]
[Result "1/2-1/2"]
[WhiteElo "2666"]
[BlackElo "2409"]
[TimeControl "180+1"]
[EndTime "8:06:46 PDT"]
[Termination "Game drawn by repetition"]

1. e4 {[%clk 0:02:59.1]} 1... e6 {[%clk 0:02:59.9]} 2. d4 {[%clk 0:02:58.5]}
2... d5 {[%clk 0:03:00.1]} 3. Nc3 {[%clk 0:02:58.5]} 3... Nc6 {[%clk 0:03:00.5]}
4. Nf3 {[%clk 0:02:53.2]} 4... Nf6 {[%clk 0:02:59]} 5. e5 {[%clk 0:02:53.2]}
5... Ne4 {[%clk 0:02:58.5]} 6. Bd3 {[%clk 0:02:40.8]} 6... Bb4 {[%clk
0:02:56.2]} 7. Bd2 {[%clk 0:02:40.3]} 7... Bxc3 {[%clk 0:02:54.4]} 8. Bxc3
{[%clk 0:02:40.2]} 8... Nxc3 {[%clk 0:02:53.7]} 9. bxc3 {[%clk 0:02:40.3]} 9...
b6 {[%clk 0:02:53.3]} 10. O-O {[%clk 0:02:39.3]} 10... Bb7 {[%clk 0:02:52.8]}
11. Nd2 {[%clk 0:02:29.9]} 11... Na5 {[%clk 0:02:51.6]} 12. Qg4 {[%clk
0:02:28.5]} 12... g6 {[%clk 0:02:50.8]} 13. Nb3 {[%clk 0:02:20.2]} 13... Nc4
{[%clk 0:02:46.4]} 14. a4 {[%clk 0:02:20]} 14... a5 {[%clk 0:02:45.5]} 15. Qe2
{[%clk 0:02:19.2]} 15... O-O {[%clk 0:02:12.8]} 16. f4 {[%clk 0:02:13.5]} 16...
Qe7 {[%clk 0:01:48.5]} 17. Rf3 {[%clk 0:02:06.2]} 17... c5 {[%clk 0:01:45.9]}
18. Rh3 {[%clk 0:02:02.4]} 18... Rfc8 {[%clk 0:01:36.3]} 19. dxc5 {[%clk
0:02:00.8]} 19... bxc5 {[%clk 0:01:34.8]} 20. Bxc4 {[%clk 0:01:59.3]} 20... dxc4
{[%clk 0:01:34.3]} 21. Nd2 {[%clk 0:01:59.7]} 21... Rd8 {[%clk 0:01:21.1]} 22.
Rf1 {[%clk 0:01:50.1]} 22... Rd7 {[%clk 0:01:07.1]} 23. Qe3 {[%clk 0:01:40.5]}
23... Rad8 {[%clk 0:01:05.5]} 24. Rf2 {[%clk 0:01:39.8]} 24... Bd5 {[%clk
0:01:01.3]} 25. g4 {[%clk 0:01:21.6]} 25... f5 {[%clk 0:00:55.4]} 26. exf6
{[%clk 0:01:01.6]} 26... Qxf6 {[%clk 0:00:53.1]} 27. Ne4 {[%clk 0:00:57.4]}
27... Bxe4 {[%clk 0:00:46.3]} 28. Qxe4 {[%clk 0:00:58.3]} 28... Rd2 {[%clk
0:00:42.9]} 29. g5 {[%clk 0:00:39.8]} 29... Qf5 {[%clk 0:00:36.5]} 30. Qxf5
{[%clk 0:00:39.7]} 30... exf5 {[%clk 0:00:36]} 31. Re3 {[%clk 0:00:39.5]} 31...
Rxf2 {[%clk 0:00:35.1]} 32. Kxf2 {[%clk 0:00:39.6]} 32... Rd2+ {[%clk
0:00:35.3]} 33. Re2 {[%clk 0:00:37.4]} 33... Rxe2+ {[%clk 0:00:35.1]} 34. Kxe2
{[%clk 0:00:37.8]} 34... Kf7 {[%clk 0:00:35.6]} 35. Ke3 {[%clk 0:00:37.9]} 35...
Ke6 {[%clk 0:00:36.3]} 36. Kf3 {[%clk 0:00:38.2]} 36... Kd5 {[%clk 0:00:36.7]}
37. Ke3 {[%clk 0:00:38.7]} 37... Ke6 {[%clk 0:00:36.4]} 38. Kf3 {[%clk
0:00:39.2]} 38... Kd5 {[%clk 0:00:36.7]} 39. h4 {[%clk 0:00:38.9]} 39... Ke6
{[%clk 0:00:37.2]} 40. Ke3 {[%clk 0:00:39.3]} 40... Kd5 {[%clk 0:00:37.8]} 41.
Kf3 {[%clk 0:00:39.9]} 41... Ke6 {[%clk 0:00:38.3]} 42. Ke3 {[%clk 0:00:40.1]}
42... Kd5 {[%clk 0:00:38.4]} 43. Kf3 {[%clk 0:00:40.6]} 1/2-1/2

[Event "Early-Titled-Tuesday-Blitz-October-17-2023"]
[Site "Chess.com"]
[Date "2023.10.17"]
[Round "1"]
[White "adotand"]
[Black "Cheer_Down"]
[Result "1-0"]
[WhiteElo "2864"]
[BlackElo "2502"]
[TimeControl "180+1"]
[EndTime "8:06:49 PDT"]
[Termination "adotand won by resignation"]

1. Nf3 {[%clk 0:03:00.9]} 1... d5 {[%clk 0:02:57.8]} 2. e3 {[%clk 0:03:01.3]}
2... Nf6 {[%clk 0:02:56.9]} 3. c4 {[%clk 0:03:01.9]} 3... e6 {[%clk 0:02:55.7]}
4. b3 {[%clk 0:03:02.5]} 4... c5 {[%clk 0:02:41.5]} 5. Bb2 {[%clk 0:03:01.8]}
5... Nc6 {[%clk 0:02:39.8]} 6. cxd5 {[%clk 0:02:57]} 6... exd5 {[%clk
0:02:38.7]} 7. d4 {[%clk 0:02:57.3]} 7... cxd4 {[%clk 0:02:32.7]} 8. exd4 {[%clk
0:02:54.6]} 8... Bb4+ {[%clk 0:02:30.9]} 9. Nbd2 {[%clk 0:02:54.9]} 9... O-O
{[%clk 0:02:29.6]} 10. Be2 {[%clk 0:02:55.5]} 10... Ne4 {[%clk 0:02:29.3]} 11.
O-O {[%clk 0:02:55.5]} 11... Bf5 {[%clk 0:02:20.1]} 12. a3 {[%clk 0:02:42.9]}
12... Bxd2 {[%clk 0:01:59.6]} 13. Nxd2 {[%clk 0:02:42.6]} 13... Nxd2 {[%clk
0:01:58.4]} 14. Qxd2 {[%clk 0:02:41.9]} 14... Re8 {[%clk 0:01:59.1]} 15. Rac1
{[%clk 0:02:37.2]} 15... Rc8 {[%clk 0:01:47.2]} 16. Rfe1 {[%clk 0:02:33.2]}
16... h6 {[%clk 0:01:40]} 17. b4 {[%clk 0:02:32.7]} 17... Qg5 {[%clk 0:01:23.4]}
18. Qxg5 {[%clk 0:02:28.1]} 18... hxg5 {[%clk 0:01:24.3]} 19. Bf3 {[%clk
0:02:25.6]} 19... Be4 {[%clk 0:01:17.5]} 20. Bg4 {[%clk 0:02:25.7]} 20... Rcd8
{[%clk 0:01:08.5]} 21. Bc3 {[%clk 0:02:23.4]} 21... Bd3 {[%clk 0:01:01.3]} 22.
Rcd1 {[%clk 0:02:18.7]} 22... Bc2 {[%clk 0:00:57.9]} 23. Rc1 {[%clk 0:02:18.3]}
23... Bd3 {[%clk 0:00:58]} 24. a4 {[%clk 0:02:14.8]} 24... Re4 {[%clk
0:00:44.1]} 25. Bf3 {[%clk 0:02:10.9]} 25... Rxe1+ {[%clk 0:00:40]} 26. Rxe1
{[%clk 0:02:10.7]} 26... b5 {[%clk 0:00:38.6]} 27. Bd1 {[%clk 0:01:56]} 27... a6
{[%clk 0:00:35.9]} 28. Re3 {[%clk 0:01:55.5]} 28... Bc4 {[%clk 0:00:35.1]} 29.
g3 {[%clk 0:01:55.1]} 29... Kf8 {[%clk 0:00:33.3]} 30. axb5 {[%clk 0:01:47.4]}
30... axb5 {[%clk 0:00:32.5]} 31. Kg2 {[%clk 0:01:41.6]} 31... Re8 {[%clk
0:00:31.1]} 32. Bd2 {[%clk 0:01:42]} 32... Rxe3 {[%clk 0:00:30.5]} 33. Bxe3
{[%clk 0:01:42.9]} 33... f6 {[%clk 0:00:30.1]} 34. f4 {[%clk 0:01:35.5]} 34...
gxf4 {[%clk 0:00:26.6]} 35. Bxf4 {[%clk 0:01:36.4]} 35... Nxd4 {[%clk
0:00:25.7]} 36. Bh5 {[%clk 0:01:34.7]} 36... g5 {[%clk 0:00:17.9]} 37. Bd6+
{[%clk 0:01:34.7]} 37... Kg7 {[%clk 0:00:18.3]} 38. h4 {[%clk 0:01:33.5]} 38...
gxh4 {[%clk 0:00:18.1]} 39. gxh4 {[%clk 0:01:34.4]} 39... Nf5 {[%clk 0:00:18.3]}
40. Bg3 {[%clk 0:01:32.7]} 40... Nxg3 {[%clk 0:00:18.5]} 41. Kxg3 {[%clk
0:01:33.6]} 41... d4 {[%clk 0:00:16]} 42. Kf4 {[%clk 0:01:33.7]} 42... Kh6
{[%clk 0:00:15.6]} 43. Bf3 {[%clk 0:01:34]} 43... d3 {[%clk 0:00:13.5]} 44. Ke3
{[%clk 0:01:34.4]} 44... Kg6 {[%clk 0:00:13.3]} 45. Bd1 {[%clk 0:01:26.6]} 45...
Kh6 {[%clk 0:00:13.4]} 46. Kf4 {[%clk 0:01:24.1]} 46... Kg6 {[%clk 0:00:13.6]}
47. h5+ {[%clk 0:01:23.8]} 47... Kh6 {[%clk 0:00:13.9]} 48. Kf5 {[%clk
0:01:24.5]} 48... d2 {[%clk 0:00:13.4]} 49. Kxf6 {[%clk 0:01:23.7]} 49... Bd3
{[%clk 0:00:12.1]} 50. Ke5 {[%clk 0:01:23.2]} 50... Bc4 {[%clk 0:00:12.1]} 51.
Kf4 {[%clk 0:01:22.8]} 51... Bf7 {[%clk 0:00:12.2]} 52. Ke3 {[%clk 0:01:20.3]}
52... Bxh5 {[%clk 0:00:12.4]} 53. Bxh5 {[%clk 0:01:20.7]} 53... Kxh5 {[%clk
0:00:13.3]} 54. Kxd2 {[%clk 0:01:21.6]} 54... Kg6 {[%clk 0:00:13.9]} 55. Kd3
{[%clk 0:01:22.4]} 55... Kf6 {[%clk 0:00:14.6]} 56. Kd4 {[%clk 0:01:23.2]} 56...
Ke6 {[%clk 0:00:15.3]} 57. Kc5 {[%clk 0:01:24.1]} 57... Kd7 {[%clk 0:00:15.8]}
58. Kxb5 {[%clk 0:01:24.9]} 58... Kc7 {[%clk 0:00:16.5]} 59. Ka6 {[%clk
0:01:25.5]} 59... Kb8 {[%clk 0:00:16.5]} 60. Kb6 {[%clk 0:01:26.1]} 60... Kc8
{[%clk 0:00:17]} 61. Ka7 {[%clk 0:01:26.1]} 61... Kc7 {[%clk 0:00:17.3]} 62. b5
{[%clk 0:01:27]} 1-0

[Event "Early-Titled-Tuesday-Blitz-October-17-2023"]
[Site "Chess.com"]
[Date "2023.10.17"]
[Round "1"]
[White "salomez"]
[Black "SashaKuzhilniy"]
[Result "0-1"]
[WhiteElo "2315"]
[BlackElo "2618"]
[TimeControl "180+1"]
[EndTime "8:06:50 PDT"]
[Termination "SashaKuzhilniy won by resignation"]

1. e4 {[%clk 0:03:00.9]} 1... g6 {[%clk 0:02:59.6]} 2. d4 {[%clk 0:03:00.8]}
2... Bg7 {[%clk 0:03:00.5]} 3. Nc3 {[%clk 0:02:59.3]} 3... d6 {[%clk 0:03:00.5]}
4. Be3 {[%clk 0:02:59.3]} 4... a6 {[%clk 0:03:00.4]} 5. a4 {[%clk 0:02:58.7]}
5... Nc6 {[%clk 0:02:59.7]} 6. f4 {[%clk 0:02:56.9]} 6... e5 {[%clk 0:02:53.6]}
7. fxe5 {[%clk 0:02:55.5]} 7... dxe5 {[%clk 0:02:54.5]} 8. d5 {[%clk 0:02:56]}
8... Nd4 {[%clk 0:02:55]} 9. Nf3 {[%clk 0:02:52.1]} 9... Bg4 {[%clk 0:02:54.6]}
10. h3 {[%clk 0:02:35.2]} 10... Bxf3 {[%clk 0:02:48.5]} 11. gxf3 {[%clk
0:02:36.1]} 11... Qh4+ {[%clk 0:02:20.5]} 12. Bf2 {[%clk 0:02:35.7]} 12... Qf4
{[%clk 0:02:20.8]} 13. Bg2 {[%clk 0:02:33]} 13... Nf6 {[%clk 0:02:18.7]} 14. O-O
{[%clk 0:02:32.6]} 14... Nh5 {[%clk 0:02:17.3]} 15. Bxd4 {[%clk 0:02:09.3]}
15... exd4 {[%clk 0:02:16.1]} 16. Ne2 {[%clk 0:02:10.2]} 16... Qe3+ {[%clk
0:01:55.3]} 17. Rf2 {[%clk 0:01:48.9]} 17... Nf4 {[%clk 0:01:28.8]} 18. Ra3
{[%clk 0:01:20.8]} 18... d3 {[%clk 0:01:01.4]} 19. Nxf4 {[%clk 0:01:03.3]} 19...
dxc2 {[%clk 0:00:59.9]} 20. Qxc2 {[%clk 0:01:00]} 20... Qxf4 {[%clk 0:00:58.9]}
21. Rb3 {[%clk 0:00:43.5]} 21... Bd4 {[%clk 0:00:55.1]} 22. Rxb7 {[%clk
0:00:35.5]} 22... O-O {[%clk 0:00:48.2]} 23. Rxc7 {[%clk 0:00:27.5]} 23... Rab8
{[%clk 0:00:46]} 24. b3 {[%clk 0:00:17.9]} 24... Rxb3 {[%clk 0:00:36.6]} 25.
Qxb3 {[%clk 0:00:15.1]} 25... Qxc7 {[%clk 0:00:36.7]} 26. Qd3 {[%clk 0:00:08.4]}
26... Qc5 {[%clk 0:00:32.6]} 27. Qd2 {[%clk 0:00:08.6]} 27... Rb8 {[%clk
0:00:31.6]} 28. Bf1 {[%clk 0:00:08.1]} 28... Rb2 {[%clk 0:00:29.1]} 29. Qxb2
{[%clk 0:00:08]} 29... Bxb2 {[%clk 0:00:29.3]} 30. d6 {[%clk 0:00:08]} 30... Bd4
{[%clk 0:00:27.1]} 31. d7 {[%clk 0:00:08.3]} 31... Bxf2+ {[%clk 0:00:27.5]} 32.
Kg2 {[%clk 0:00:08.2]} 32... Bh4 {[%clk 0:00:26.6]} 0-1